[Event "2nd Hersonissos Open 2018"]
[Site "Hersonissos"]
[Date "2018.06.24"]
[Round "9"]
[White "Sielicki, Tomasz"]
[Black "Haug, Johannes"]
[Result "0-1"]
[ECO "A83"]
[WhiteElo "1963"]
[BlackElo "2401"]
[Annotator "NA"]
[PlyCount "76"]
[EventDate "2018.06.23"]
[EventType "swiss"]
[EventCountry "GRE"]
[SourceTitle "playchess.com"]
[Source "ChessBase"]
[SourceQuality "1"]
[TimeControl "5400+30"]

1. d4 {[%emt 0:00:00]} f5 {[%emt 0:01:48]} 2. e4 {[%emt 0:04:15]} fxe4 {[%emt 0:00:08]} 3. Nc3 {[%emt 0:00:08]} Nf6 {[%emt 0:00:19]} 4. Bg5 {[%emt 0:00:09]} Nc6 {[%emt 0:00:41]} 5. d5 {[%emt 0:00:43]} Ne5 {[%emt 0:00:21]} 6. Qd4 {[%emt 0:01:24]} Nf7 {[%emt 0:00:40]} 7. h4 {[%emt 0:00:45]} ({Better is} 7. Nh3 $11) 7... c6 {[%emt 0:00:55]} 8. O-O-O {[%emt 0:02:34]} Qb6 {[%emt 0:00:27] A83: Dutch Defence: Staunton Gambit with 3 Nc3 Nf6 4 Bg5} 9. Bxf6 {[%emt 0:04:48]} gxf6 {[%emt 0:00:37]} 10. Qxe4 {[%emt 0:01:03] LiveBook: 18 Games} Qxf2 {[%emt 0:02:44]} 11. Bd3 $146 {[%emt 0:00:42]} ({Predecessor:} 11. Nf3 f5 12. Qxf5 Qe3+ 13. Kb1 d6 14. Qd3 Qxd3 15. Bxd3 Bg7 16. Ng5 {0-1 (38) Del Rio de Angelis,S (2522)-Vallejo Pons,F (2713) Linares 2016}) 11... Bh6+ {[%emt 0:08:40]} 12. Kb1 {[%emt 0:00:14]} Qf4 {[%emt 0:04:53]} 13. Qe2 {[%emt 0:03:29]} d6 {[%emt 0:13:37]} 14. Nf3 {[%emt 0:09:25]} Bg4 {[%emt 0:09:15]} 15. Rhe1 {[%emt 0:25:03]} (15. dxc6 $14 bxc6 16. Be4) 15... Ne5 {[%emt 0:02:52]} 16. dxc6 {[%emt 0:07:20]} bxc6 {[%emt 0:00:30]} 17. Be4 {[%emt 0:04:26]} Bxf3 {[%emt 0:16:04]} 18. Bxf3 {[%emt 0:01:27]} O-O {[%emt 0:04:03]} 19. Qf2 {[%emt 0:05:12]} Qb4 {[%emt 0:08:43]} 20. a3 $17 {[%emt 0:10:06]} Qb6 {[%emt 0:00:46]} 21. Qxb6 {[%emt 0:03:41]} axb6 {[%emt 0:00:11]} 22. Rxe5 {[%emt 0:00:18]} dxe5 {[%emt 0:01:24]} 23. Bxc6 {[%emt 0:00:46]} Rad8 {[%emt 0:01:10]} 24. Bd7 {[%emt 0:04:13]} Kf7 {[%emt 0:02:39]} 25. Na4 {[%emt 0:01:08]} Be3 {[%emt 0:03:36]} 26. Rd3 {[%emt 0:00:25]} Bd4 {[%emt 0:05:18]} 27. Bf5 {[%emt 0:02:12]} e6 {[%emt 0:01:21]} 28. Bxh7 {[%emt 0:01:02]} Rh8 {[%emt 0:01:13]} 29. Be4 {[%emt 0:01:48]} Rxh4 {[%emt 0:00:46]} 30. Bc6 {[%emt 0:00:36]} e4 {[%emt 0:02:07]} 31. Rb3 {[%emt 0:00:59]} f5 {[%emt 0:02:52]} 32. Nxb6 {[%emt 0:02:21]} Rh1+ {[%emt 0:01:43]} 33. Ka2 {[%emt 0:00:05]} Rd6 {[%emt 0:00:28]} 34. c3 {[%emt 0:01:15]} Bxb6 {[%emt 0:00:30]} 35. Rxb6 {[%emt 0:00:06]} Kf6 {[%emt 0:00:14]} 36. c4 {[%emt 0:00:23]} e3 {[%emt 0:00:33]} 37. c5 {[%emt 0:00:06]} Rxc6 {[%emt 0:00:07]} 38. Rxc6 {[%emt 0:00:25]} e2 {[%emt 0:00:06]} 0-1

[Event "2nd Hersonissos Open 2018"]
[Site "Hersonissos"]
[Date "2018.06.24"]
[Round "9"]
[White "Kadianis, Georgios"]
[Black "Bit-Narva, David"]
[Result "0-1"]
[ECO "B06"]
[WhiteElo "1917"]
[BlackElo "1926"]
[Annotator "NA"]
[PlyCount "126"]
[EventDate "2018.06.23"]
[EventType "swiss"]
[EventCountry "GRE"]
[SourceTitle "playchess.com"]
[Source "ChessBase"]
[SourceQuality "1"]
[TimeControl "5400+30"]

1. e4 {[%emt 0:00:00]} g6 {[%emt 0:02:09]} 2. d4 {[%emt 0:01:02]} Bg7 {[%emt 0:00:09]} 3. Nc3 {[%emt 0:00:21]} d6 {[%emt 0:01:19]} 4. Be3 {[%emt 0:00:07]} a6 {[%emt 0:00:22]} 5. Qd2 {[%emt 0:00:22]} Nd7 {[%emt 0:00:13]} 6. O-O-O {[%emt 0:01:00]} b5 {[%emt 0:00:19]} 7. f3 {[%emt 0:02:42]} Bb7 {[%emt 0:00:49]} 8. g4 {[%emt 0:04:46]} h6 {[%emt 0:01:31]} 9. h4 {[%emt 0:05:30]} c5 {[%emt 0:02:41]} 10. dxc5 {[%emt 0:15:09]} dxc5 {[%emt 0:11:17]} 11. Bh3 {[%emt 0:02:03]} e6 {[%emt 0:04:24]} 12. Nce2 {[%emt 0:05:10]} Qc7 {[%emt 0:01:41]} 13. Bf4 {[%emt 0:10:17]} Ne5 {[%emt 0:09:11]} 14. Bxe5 {[%emt 0:12:50]} Bxe5 {[%emt 0:00:15]} 15. Qe3 {[%emt 0:00:41]} Bg7 {[%emt 0:05:20]} 16. f4 {[%emt 0:01:03]} Qa5 {[%emt 0:03:45]} 17. a3 {[%emt 0:03:36]} b4 {[%emt 0:00:49]} 18. Ng3 {[%emt 0:08:54]} c4 {[%emt 0:03:55]} 19. Kb1 {[%emt 0:02:46]} c3 {[%emt 0:17:55]} 20. Nf3 {[%emt 0:03:40]} bxa3 {[%emt 0:09:10]} 21. b3 {[%emt 0:00:18]} a2+ {[%emt 0:00:21]} 22. Ka1 {[%emt 0:00:10]} Rc8 {[%emt 0:08:36]} 23. Ne5 {[%emt 0:10:17]} Bxe5 {[%emt 0:12:25]} 24. fxe5 {[%emt 0:00:05]} Qxe5 {[%emt 0:01:00]} 25. Qd4 {[%emt 0:00:37]} Qxd4 {[%emt 0:02:30]} 26. Rxd4 {[%emt 0:00:06]} Ke7 {[%emt 0:00:32]} 27. Rhd1 {[%emt 0:05:09]} Nf6 {[%emt 0:00:03]} 28. e5 {[%emt 0:03:15]} Nd5 {[%emt 0:00:03]} 29. Ne4 {[%emt 0:01:05]} Rc7 {[%emt 0:00:46]} 30. Nd6 {[%emt 0:01:21]} Ne3 {[%emt 0:01:05]} 31. Rc1 {[%emt 0:00:17]} Rd8 {[%emt 0:00:39]} 32. Rd3 {[%emt 0:00:44]} Nd5 {[%emt 0:00:15]} 33. Rf1 {[%emt 0:00:32]} Rf8 {[%emt 0:00:29]} 34. Rdf3 {[%emt 0:00:31]} f5 {[%emt 0:00:27]} 35. Nxb7 {[%emt 0:00:12]} Rxb7 {[%emt 0:00:01]} 36. h5 {[%emt 0:00:41]} Rg8 {[%emt 0:00:54]} 37. hxg6 {[%emt 0:00:15]} f4 {[%emt 0:00:08]} 38. Bg2 {[%emt 0:00:47]} Rxg6 {[%emt 0:00:15]} 39. Rxf4 {[%emt 0:00:29]} Nxf4 {[%emt 0:01:07]} 40. Bxb7 {[%emt 0:00:00]} Rxg4 {[%emt 0:00:00]} 41. Kxa2 {[%emt 0:00:00]} Nd5 {[%emt 0:00:00]} 42. Bxd5 {[%emt 0:00:00]} exd5 {[%emt 0:00:00]} 43. Rf3 {[%emt 0:00:00]} d4 {[%emt 0:00:00]} 44. b4 {[%emt 0:00:00]} Ke6 {[%emt 0:00:00]} 45. Rf6+ {[%emt 0:00:00]} Kxe5 {[%emt 0:00:00]} 46. Rxh6 {[%emt 0:00:00]} d3 {[%emt 0:00:00]} 47. cxd3 {[%emt 0:01:57]} Rxb4 {[%emt 0:00:00]} 48. Rh2 {[%emt 0:02:05]} a5 {[%emt 0:00:00]} 49. Ka3 {[%emt 0:01:04]} Rb7 {[%emt 0:00:00]} 50. Rh4 {[%emt 0:00:31]} Rc7 {[%emt 0:00:00]} 51. d4+ {[%emt 0:00:29]} Kd5 {[%emt 0:00:00]} 52. Rh1 {[%emt 0:00:31]} Kxd4 {[%emt 0:03:09]} 53. Kb3 {[%emt 0:00:29]} Rb7+ {[%emt 0:00:29]} 54. Kc2 {[%emt 0:00:05]} Rb2+ {[%emt 0:00:12]} 55. Kc1 {[%emt 0:00:05]} a4 {[%emt 0:03:56]} 56. Rh4+ {[%emt 0:00:36]} Kd3 {[%emt 0:00:06]} 57. Rh3+ {[%emt 0:00:05]} Kc4 {[%emt 0:00:22]} 58. Rh8 {[%emt 0:00:32]} a3 {[%emt 0:00:42]} 59. Rc8+ {[%emt 0:00:13]} Kd4 {[%emt 0:00:12]} 60. Rd8+ {[%emt 0:00:09]} Ke5 {[%emt 0:00:12]} 61. Re8+ {[%emt 0:00:47]} Kd6 {[%emt 0:00:12]} 62. Rd8+ {[%emt 0:01:12]} Ke7 {[%emt 0:00:18]} 63. Rc8 {[%emt 0:00:55]} a2 {[%emt 0:00:10]} 0-1

[Event "2nd Hersonissos Open 2018"]
[Site "Hersonissos"]
[Date "2018.06.24"]
[Round "9"]
[White "Pliev, Vladimir"]
[Black "Serpetsidakis, Nikolaos"]
[Result "1-0"]
[ECO "C10"]
[WhiteElo "1909"]
[BlackElo "2126"]
[Annotator "NA"]
[PlyCount "119"]
[EventDate "2018.06.23"]
[EventType "swiss"]
[EventCountry "GRE"]
[SourceTitle "playchess.com"]
[Source "ChessBase"]
[SourceQuality "1"]
[TimeControl "5400+30"]

1. e4 {[%emt 0:00:00]} e6 {[%emt 0:00:07]} 2. d4 {[%emt 0:00:00]} d5 {[%emt 0:00:05]} 3. Nc3 {[%emt 0:00:00]} Nc6 {[%emt 0:00:08]} 4. Nf3 {[%emt 0:02:07]} Nf6 {[%emt 0:00:08] LiveBook: 955 Games} 5. Bg5 {[%emt 0:03:22]} Be7 {[%emt 0:00:17]} 6. e5 {[%emt 0:00:57]} Ne4 {[%emt 0:00:12]} 7. Bxe7 {[%emt 0:00:14]} Qxe7 {[%emt 0:00:06]} 8. a3 {[%emt 0:03:29]} Bd7 {[%emt 0:00:26]} 9. Bd3 $15 {[%emt 0:00:15]} Ng5 {[%emt 0:00:12]} 10. Be2 {[%emt 0:02:57]} Nxf3+ {[%emt 0:00:42]} 11. Bxf3 {[%emt 0:00:07]} f6 {[%emt 0:00:26]} 12. O-O {[%emt 0:20:46]} fxe5 {[%emt 0:07:52]} 13. dxe5 {[%emt 0:00:35]} O-O-O {[%emt 0:19:27]} 14. Re1 {[%emt 0:14:00]} Qg5 {[%emt 0:07:23]} 15. g3 {[%emt 0:02:23]} Rdf8 {[%emt 0:08:49]} 16. Bg2 {[%emt 0:00:49]} Qf5 {[%emt 0:01:43]} 17. f4 {[%emt 0:02:24]} g5 {[%emt 0:00:30]} 18. Ne2 {[%emt 0:01:12]} gxf4 {[%emt 0:05:34]} 19. Nxf4 {[%emt 0:00:30]} Qg5 {[%emt 0:04:13]} 20. Qe2 {[%emt 0:06:11]} Rf5 {[%emt 0:04:45]} 21. Nd3 {[%emt 0:01:23]} Rhf8 {[%emt 0:02:05]} 22. Qe3 {[%emt 0:02:10]} Qxe3+ {[%emt 0:10:31]} 23. Rxe3 {[%emt 0:00:20]} Nd4 {[%emt 0:00:18]} 24. Rc1 {[%emt 0:03:07]} Bb5 {[%emt 0:03:56]} 25. Nf4 {[%emt 0:03:58]} Rxf4 {[%emt 0:10:37]} 26. gxf4 {[%emt 0:00:23]} Ne2+ {[%emt 0:00:49]} 27. Rxe2 {[%emt 0:00:08]} Bxe2 {[%emt 0:00:02]} 28. Kf2 {[%emt 0:00:57]} Bg4 {[%emt 0:00:24]} 29. Ke3 {[%emt 0:01:32]} c5 {[%emt 0:02:30]} 30. c3 {[%emt 0:01:22]} Bf5 {[%emt 0:00:20]} 31. Bf3 {[%emt 0:06:05]} Rg8 {[%emt 0:00:19]} 32. Kf2 {[%emt 0:00:52]} Kc7 {[%emt 0:05:32]} 33. Ke3 {[%emt 0:03:23]} Kb6 {[%emt 0:03:40]} 34. Kf2 {[%emt 0:01:38]} a5 {[%emt 0:00:47]} 35. Ke3 {[%emt 0:01:36]} a4 {[%emt 0:00:18]} 36. Kf2 {[%emt 0:01:36]} h5 {[%emt 0:01:13]} 37. h4 {[%emt 0:04:33]} Be4 {[%emt 0:02:00]} 38. Bxe4 {[%emt 0:02:58]} dxe4 {[%emt 0:00:01]} 39. Rd1 {[%emt 0:00:29]} Rg4 {[%emt 0:00:55]} 40. Ke3 {[%emt 0:00:00]} Rxh4 {[%emt 0:00:00]} 41. Rd6+ {[%emt 0:00:00]} Kc7 {[%emt 0:00:00]} 42. Rxe6 {[%emt 0:00:00]} Rh1 {[%emt 0:00:00]} 43. Kxe4 {[%emt 0:00:00]} h4 {[%emt 0:00:00]} 44. Rh6 {[%emt 0:00:00]} h3 {[%emt 0:00:00]} 45. Rh7+ {[%emt 0:00:00]} Kc6 {[%emt 0:00:00]} 46. Kf5 {[%emt 0:00:00]} h2 {[%emt 0:00:00]} 47. Ke6 {[%emt 0:00:00]} Rf1 {[%emt 0:00:00]} 48. Rxh2 {[%emt 0:00:00]} Rxf4 {[%emt 0:00:00]} 49. Rd2 {[%emt 0:00:00]} b5 {[%emt 0:00:00]} 50. Ke7 {[%emt 0:00:00]} b4 {[%emt 0:00:00]} 51. axb4 {[%emt 0:00:00]} cxb4 {[%emt 0:00:00]} 52. cxb4 {[%emt 0:00:00]} Rxb4 {[%emt 0:00:00]} 53. e6 {[%emt 0:00:00]} Re4 {[%emt 0:00:00]} 54. Kf6 {[%emt 0:00:00]} Rf4+ {[%emt 0:00:00]} 55. Ke5 {[%emt 0:00:00]} Rf3 {[%emt 0:00:00]} 56. Rc2+ {[%emt 0:00:00]} Kb7 {[%emt 0:00:00]} 57. Rc4 {[%emt 0:00:00]} a3 {[%emt 0:00:00]} 58. bxa3 {[%emt 0:00:00]} Rxa3 {[%emt 0:00:00]} 59. e7 {[%emt 0:00:00]} Ra8 {[%emt 0:00:00]} 60. Ke4 1-0

[Event "2nd Hersonissos Open 2018"]
[Site "Hersonissos"]
[Date "2018.06.24"]
[Round "9"]
[White "Brokalakis - Gounaris, Christos"]
[Black "Lirindzakis, Timotheos"]
[Result "1/2-1/2"]
[ECO "E32"]
[WhiteElo "1851"]
[BlackElo "2163"]
[Annotator "NA"]
[PlyCount "48"]
[EventDate "2018.06.23"]
[EventType "swiss"]
[EventCountry "GRE"]
[SourceTitle "playchess.com"]
[Source "ChessBase"]
[SourceQuality "1"]
[TimeControl "5400+30"]

1. d4 {[%emt 0:00:00]} Nf6 {[%emt 0:00:04]} 2. c4 {[%emt 0:00:20]} e6 {[%emt 0:00:03]} 3. Nc3 {[%emt 0:00:26]} Bb4 {[%emt 0:00:03]} 4. Qc2 {[%emt 0:00:54]} b6 {[%emt 0:00:57]} (4... d5 $11 {keeps the balance.}) 5. Bg5 {[%emt 0:06:07]} Bb7 $11 {[%emt 0:06:26] LiveBook: 38 Games} 6. f3 {[%emt 0:05:15]} h6 {[%emt 0:01:47]} 7. Bh4 {[%emt 0:04:01]} c5 {[%emt 0:07:56]} 8. a3 {[%emt 0:04:43]} Bxc3+ {[%emt 0:06:08]} 9. Qxc3 {[%emt 0:00:37]} cxd4 {[%emt 0:02:42]} 10. Qxd4 {[%emt 0:01:26]} Nc6 {[%emt 0:00:57]} 11. Qc3 {[%emt 0:04:18]} Ne4 {[%emt 0:10:15]} 12. Bxd8 {[%emt 0:00:57]} Nxc3 {[%emt 0:00:02]} 13. Bh4 {[%emt 0:11:50]} Na4 {[%emt 0:02:11]} 14. Rb1 {[%emt 0:04:46]} Ne5 {[%emt 0:07:51]} 15. e3 {[%emt 0:08:08]} Rc8 {[%emt 0:05:57]} 16. b3 {[%emt 0:03:44]} Nc5 {[%emt 0:00:14]} 17. Bg3 {[%emt 0:01:03]} f6 {[%emt 0:05:52]} 18. Nh3 {[%emt 0:05:11]} Ke7 {[%emt 0:02:41]} 19. Nf2 {[%emt 0:01:34]} d5 {[%emt 0:01:57]} 20. Be2 {[%emt 0:08:39]} dxc4 {[%emt 0:04:56]} 21. Bxe5 {[%emt 0:00:38]} fxe5 {[%emt 0:00:05]} 22. Bxc4 {[%emt 0:01:10]} Bd5 {[%emt 0:00:55]} 23. Bxd5 {[%emt 0:00:41]} exd5 {[%emt 0:00:04]} 24. Ke2 {[%emt 0:01:00]} Rc6 {[%emt 0:09:04]} 1/2-1/2

[Event "2nd Hersonissos Open 2018"]
[Site "Hersonissos"]
[Date "2018.06.24"]
[Round "9"]
[White "Iminov, Bachtiar"]
[Black "Storkebaum, Ulrike"]
[Result "0-1"]
[ECO "A05"]
[WhiteElo "1842"]
[BlackElo "1825"]
[Annotator "NA"]
[PlyCount "80"]
[EventDate "2018.06.23"]
[EventType "swiss"]
[EventCountry "GRE"]
[SourceTitle "playchess.com"]
[Source "ChessBase"]
[SourceQuality "1"]
[TimeControl "5400+30"]

1. Nf3 {[%emt 0:00:42]} Nf6 {[%emt 0:00:10]} 2. c4 {[%emt 0:00:44]} g6 {[%emt 0:00:28]} 3. b4 {[%emt 0:00:48]} Bg7 {[%emt 0:00:24]} 4. Bb2 {[%emt 0:01:20]} O-O {[%emt 0:00:30]} 5. g3 {[%emt 0:00:03]} d6 {[%emt 0:01:31]} 6. Bg2 {[%emt 0:00:17]} e5 {[%emt 0:06:49]} 7. O-O {[%emt 0:01:39]} Nc6 {[%emt 0:00:59]} 8. b5 {[%emt 0:00:23]} Ne7 {[%emt 0:00:49]} 9. d3 {[%emt 0:00:46]} Rb8 {[%emt 0:05:18]} 10. Nbd2 {[%emt 0:07:08]} c5 {[%emt 0:07:07]} 11. Ne1 {[%emt 0:09:13]} Ng4 {[%emt 0:14:39]} 12. h3 {[%emt 0:04:07]} Nh6 {[%emt 0:01:21]} 13. Nc2 {[%emt 0:00:33]} f5 {[%emt 0:00:27]} 14. Ne3 {[%emt 0:01:17]} Be6 {[%emt 0:02:25]} 15. Nb1 {[%emt 0:05:05]} f4 {[%emt 0:01:06]} 16. Nd5 {[%emt 0:00:25]} fxg3 {[%emt 0:02:31]} 17. fxg3 {[%emt 0:00:46]} Nhf5 {[%emt 0:05:56]} 18. g4 {[%emt 0:01:50]} Nh4 {[%emt 0:02:33]} 19. Nbc3 {[%emt 0:00:24]} Nxg2 {[%emt 0:01:16]} 20. Kxg2 {[%emt 0:00:45]} Nxd5 {[%emt 0:07:32]} 21. cxd5 {[%emt 0:01:22]} Bd7 {[%emt 0:00:44]} 22. Qd2 {[%emt 0:01:29]} a6 {[%emt 0:01:29]} 23. Rxf8+ {[%emt 0:04:54]} Qxf8 {[%emt 0:00:26]} 24. Rf1 {[%emt 0:01:12]} Qd8 {[%emt 0:01:33]} 25. bxa6 {[%emt 0:01:04]} bxa6 {[%emt 0:00:10]} 26. Ne4 {[%emt 0:00:57]} Qe7 {[%emt 0:01:52]} 27. Bc3 {[%emt 0:00:39]} Rf8 {[%emt 0:00:46]} 28. Rxf8+ {[%emt 0:02:34]} Qxf8 {[%emt 0:04:10]} 29. Ba5 {[%emt 0:04:53]} Bf6 {[%emt 0:03:40]} 30. Bc7 {[%emt 0:01:23]} Be7 {[%emt 0:00:09]} 31. Qa5 {[%emt 0:00:43]} h5 {[%emt 0:05:13]} 32. Qb6 {[%emt 0:02:41]} hxg4 {[%emt 0:00:25]} 33. hxg4 {[%emt 0:00:06]} Qf4 {[%emt 0:02:43]} 34. g5 {[%emt 0:09:14]} Qg4+ {[%emt 0:02:53]} 35. Kf2 {[%emt 0:00:17]} Qh4+ {[%emt 0:00:50]} 36. Kg2 {[%emt 0:01:13]} Bh3+ {[%emt 0:00:37]} 37. Kg1 {[%emt 0:01:36]} Qg4+ {[%emt 0:02:16]} 38. Kf2 {[%emt 0:00:09]} Qf4+ {[%emt 0:03:41]} 39. Ke1 {[%emt 0:02:52]} Qc1+ {[%emt 0:00:27]} 40. Kf2 {[%emt 0:00:00]} Qf1+ {[%emt 0:00:00]} 0-1

[Event "2nd Hersonissos Open 2018"]
[Site "Hersonissos"]
[Date "2018.06.24"]
[Round "9"]
[White "Fragiadakis, Emanouel"]
[Black "Kotsinis, Alexandros"]
[Result "0-1"]
[ECO "D20"]
[WhiteElo "1813"]
[BlackElo "1655"]
[Annotator "NA"]
[PlyCount "50"]
[EventDate "2018.06.23"]
[EventType "swiss"]
[EventCountry "GRE"]
[SourceTitle "playchess.com"]
[Source "ChessBase"]
[SourceQuality "1"]
[TimeControl "5400+30"]

1. d4 {[%emt 0:00:00]} d5 {[%emt 0:00:33]} 2. c4 {[%emt 0:00:55]} dxc4 {[%emt 0:00:09]} 3. e3 {[%emt 0:00:41]} e5 {[%emt 0:00:27]} 4. Nf3 {[%emt 0:00:48]} exd4 {[%emt 0:01:44]} 5. exd4 {[%emt 0:02:03]} Nf6 {[%emt 0:05:26]} 6. Bxc4 {[%emt 0:00:26]} Bb4+ {[%emt 0:03:52]} 7. Nc3 {[%emt 0:00:07]} O-O {[%emt 0:00:06]} 8. O-O {[%emt 0:00:03]} Bg4 {[%emt 0:00:10]} 9. Be3 {[%emt 0:00:16]} Nc6 {[%emt 0:00:58]} 10. h3 {[%emt 0:03:34]} Bh5 {[%emt 0:04:21]} 11. a3 {[%emt 0:00:17]} Bxc3 {[%emt 0:10:18]} 12. bxc3 {[%emt 0:00:06]} Na5 {[%emt 0:00:35]} 13. Be2 {[%emt 0:03:41]} Qd5 {[%emt 0:04:28]} 14. Ne5 {[%emt 0:01:59]} Bxe2 {[%emt 0:00:09]} 15. Qxe2 {[%emt 0:00:05]} b5 {[%emt 0:00:27]} 16. a4 {[%emt 0:03:04]} a6 {[%emt 0:02:56]} 17. c4 {[%emt 0:07:32]} bxc4 {[%emt 0:07:00]} 18. Rac1 {[%emt 0:00:19]} Rab8 {[%emt 0:04:57]} 19. Nxc4 {[%emt 0:03:00]} Nb3 {[%emt 0:07:18]} 20. Rc2 {[%emt 0:16:37]} Rfd8 {[%emt 0:05:32]} 21. Ne5 {[%emt 0:12:54]} c5 {[%emt 0:01:55]} 22. Qxa6 {[%emt 0:16:45]} Rd6 {[%emt 0:22:13]} 23. Qd3 {[%emt 0:06:18]} Nxd4 {[%emt 0:07:04]} 24. Bxd4 {[%emt 0:00:33]} cxd4 {[%emt 0:00:10]} 25. Nc6 {[%emt 0:01:32]} Rxc6 {[%emt 0:00:43]} 0-1

[Event "2nd Hersonissos Open 2018"]
[Site "Hersonissos"]
[Date "2018.06.24"]
[Round "9"]
[White "Aggeletos, Marios"]
[Black "Aggelakis, Ilias"]
[Result "1-0"]
[ECO "D35"]
[WhiteElo "1769"]
[BlackElo "1683"]
[Annotator "NA"]
[PlyCount "109"]
[EventDate "2018.06.23"]
[EventType "swiss"]
[EventCountry "GRE"]
[SourceTitle "playchess.com"]
[Source "ChessBase"]
[SourceQuality "1"]
[TimeControl "5400+30"]

1. d4 {[%emt 0:00:00]} d5 {[%emt 0:00:25]} 2. c4 {[%emt 0:00:00]} e6 {[%emt 0:01:58]} 3. Nc3 {[%emt 0:00:00]} Nf6 {[%emt 0:00:05]} 4. cxd5 {[%emt 0:00:00]} exd5 {[%emt 0:00:09]} 5. Bg5 {[%emt 0:00:07]} Be7 {[%emt 0:00:05]} 6. e3 {[%emt 0:00:06]} O-O {[%emt 0:01:24]} 7. Bd3 {[%emt 0:00:15]} h6 {[%emt 0:00:16]} 8. Bh4 {[%emt 0:00:05]} b6 {[%emt 0:02:12]} 9. Nf3 {[%emt 0:06:04]} Bb7 {[%emt 0:01:05]} 10. O-O {[%emt 0:10:36]} Nbd7 {[%emt 0:00:11]} 11. Qb3 {[%emt 0:04:08]} c5 {[%emt 0:02:25]} 12. dxc5 {[%emt 0:02:24]} Nxc5 {[%emt 0:00:10]} 13. Qd1 {[%emt 0:01:10]} Nfe4 {[%emt 0:03:54]} 14. Bxe7 {[%emt 0:01:36]} Qxe7 {[%emt 0:00:51]} 15. Ne2 {[%emt 0:04:03]} Rac8 {[%emt 0:06:43]} 16. Ned4 {[%emt 0:00:34]} Rfd8 {[%emt 0:15:56]} 17. Nf5 {[%emt 0:08:35]} Qf6 {[%emt 0:02:46]} 18. N3d4 {[%emt 0:03:45]} Nxd3 {[%emt 0:19:20]} 19. Qxd3 {[%emt 0:00:09]} Nc5 {[%emt 0:00:20]} 20. Qd2 {[%emt 0:01:54]} Ne4 {[%emt 0:01:40]} 21. Qe2 {[%emt 0:00:08]} Rc5 {[%emt 0:01:43]} 22. Rfd1 {[%emt 0:07:01]} Rdc8 {[%emt 0:06:39]} 23. f3 {[%emt 0:07:05]} Nd6 {[%emt 0:00:55]} 24. Nxd6 {[%emt 0:01:03]} Qxd6 {[%emt 0:00:10]} 25. Qd3 {[%emt 0:04:04]} Qf6 {[%emt 0:02:43]} 26. Qf5 {[%emt 0:01:22]} Qe7 {[%emt 0:03:18]} 27. Qf4 {[%emt 0:05:38]} Qc7 {[%emt 0:07:39]} 28. Qxc7 {[%emt 0:00:12]} R8xc7 {[%emt 0:00:04]} 29. Rd2 {[%emt 0:00:18]} g6 {[%emt 0:00:29]} 30. Rad1 {[%emt 0:00:15]} Kg7 {[%emt 0:02:14]} 31. Kf2 {[%emt 0:01:10]} a6 {[%emt 0:01:44]} 32. Ne2 {[%emt 0:01:25]} Kf6 {[%emt 0:02:24]} 33. Nc3 {[%emt 0:00:20]} Ke6 {[%emt 0:00:00]} 34. Rd4 {[%emt 0:00:26]} b5 {[%emt 0:03:22]} 35. R1d2 {[%emt 0:00:45]} a5 {[%emt 0:02:50]} 36. a3 {[%emt 0:03:39]} h5 {[%emt 0:02:24]} 37. Kg3 {[%emt 0:01:42]} f6 {[%emt 0:01:11]} 38. h4 {[%emt 0:00:47]} g5 {[%emt 0:02:24]} 39. Kh3 {[%emt 0:02:25]} Bc6 {[%emt 0:02:32]} 40. g4 {[%emt 0:00:00]} hxg4+ {[%emt 0:00:00]} 41. fxg4 {[%emt 0:00:00]} gxh4 {[%emt 0:00:00]} 42. Kxh4 {[%emt 0:00:00]} Rh7+ {[%emt 0:00:00]} 43. Kg3 {[%emt 0:00:00]} Rg7 {[%emt 0:00:00]} 44. Ne2 {[%emt 0:00:00]} Rg5 {[%emt 0:00:00]} 45. Nf4+ {[%emt 0:00:00]} Kf7 {[%emt 0:00:00]} 46. Rf2 {[%emt 0:00:00]} Ke7 {[%emt 0:00:00]} 47. Rh2 {[%emt 0:00:00]} f5 {[%emt 0:00:00]} 48. Nd3 {[%emt 0:03:29]} Rc4 {[%emt 0:00:00]} 49. Ne5 {[%emt 0:02:53]} Rc1 {[%emt 0:00:00]} 50. Rh7+ {[%emt 0:01:30]} Kf6 {[%emt 0:00:00]} 51. Nxc6 {[%emt 0:00:19]} Rxc6 {[%emt 0:00:00]} 52. Rh6+ {[%emt 0:00:16]} Rg6 {[%emt 0:00:00]} 53. Rxg6+ {[%emt 0:01:39]} Kxg6 {[%emt 0:00:00]} 54. Rxd5 {[%emt 0:00:27]} fxg4 {[%emt 0:00:00]} 55. Rxb5 {[%emt 0:00:13]} 1-0